bitfinex/quotes_BTCUSD_20220211
["timestamp","ask_amount","ask_price","bid_price","bid_amount"]
[1644586665812,0.19976025,43777.0,43776.0,0.45271616]
[1644586666213,0.24976025,43777.0,43776.0,0.164271]
[1644586666614,0.19976025,43777.0,43776.0,0.209971]
[1644586666813,0.24976025,43777.0,43776.0,0.267106]
[1644586668373,0.24976025,43777.0,43776.0,0.266887]
[1644586668970,0.19976025,43777.0,43776.0,0.266887]
[1644586670372,0.19976025,43777.0,43773.0,0.40190993]
[1644586670573,0.19976025,43777.0,43773.0,0.14149429]
[1644586670773,0.19976025,43777.0,43774.0,0.06929503]
[1644586670970,0.19976025,43777.0,43775.0,0.10283181]
[1644586671171,0.05,43780.0,43775.0,0.10283181]
[1644586671172,0.05,43784.0,43776.0,1.157135]
[1644586671374,0.05282711,43784.0,43778.0,0.114256]
[1644586671573,0.05282711,43784.0,43779.0,0.0457]
[1644586672125,0.00282711,43784.0,43779.0,0.0457]
[1644586672322,0.05,43780.0,43779.0,0.102828]
[1644586674032,0.00073397,43782.0,43781.0,0.24318917]
[1644586674230,0.00073397,43782.0,43781.0,0.54602652]
[1644586674728,0.001,43788.0,43781.0,0.54602652]
[1644586674929,0.2873501,43788.0,43784.0,0.12283082]
[1644586675227,0.2873501,43788.0,43784.0,0.17283082]
[1644586675968,0.2873501,43788.0,43785.0,0.057124]
[1644586676165,0.28808403,43788.0,43785.0,0.057124]
[1644586676569,0.28808403,43788.0,43785.0,0.00628021]
[1644586677167,0.2873501,43788.0,43785.0,0.00628021]
[1644586677567,0.001,43788.0,43785.0,0.06340521]
[1644586678877,0.31948915,43788.0,43785.0,0.06340521]
[1644586679072,0.37344298,43788.0,43785.0,0.06340521]
[1644586679915,0.001,43788.0,43785.0,0.06340521]
[1644586682818,0.1963848,43788.0,43785.0,0.06340521]
[1644586683475,0.1953848,43787.0,43785.0,0.06340521]
[1644586683877,0.1953848,43786.0,43785.0,0.06340521]
[1644586684275,0.1953848,43786.0,43785.0,0.00628021]
[1644586684675,0.24595746,43788.0,43785.0,0.05628021]
[1644586685076,0.24422333,43787.0,43785.0,0.00628021]
[1644586685577,0.24422333,43786.0,43785.0,0.00628021]
[1644586685977,0.24422333,43787.0,43785.0,0.00628021]
[1644586686176,0.24422333,43786.0,43785.0,0.00628021]
[1644586686823,0.29395328,43788.0,43785.0,0.00628021]
[1644586687015,0.29468741,43788.0,43785.0,0.00628021]
[1644586688014,0.29395328,43788.0,43785.0,0.00628021]
[1644586688616,0.29295328,43787.0,43785.0,0.00628021]
[1644586689215,0.29278166,43788.0,43785.0,0.00628021]
[1644586689416,0.29351579,43788.0,43785.0,0.00628021]
[1644586689617,0.35064311,43788.0,43785.0,0.00628021]
[1644586689916,0.00073413,43788.0,43785.0,0.00628021]
[1644586690316,0.39153719,43791.0,43785.0,0.00628021]
[1644586690566,0.00073412,43789.0,43785.0,0.00628021]
[1644586691466,0.68512,43790.0,43785.0,0.00628021]
[1644586691770,0.00073412,43789.0,43785.0,0.00628021]
[1644586692769,0.68512,43790.0,43785.0,0.00628021]
[1644586693069,0.67585412,43790.0,43785.0,0.00628021]
[1644586693470,0.0571275,43789.0,43785.0,0.00628021]
[1644586695721,0.33828021,43786.0,43785.0,0.00628021]
[1644586696123,0.33828021,43786.0,43784.0,0.11570682]
[1644586696827,0.05712663,43786.0,43784.0,0.01793637]
[1644586697222,0.34995152,43786.0,43784.0,0.01793637]
[1644586697422,0.34995152,43786.0,43784.0,0.07506337]
[1644586697822,0.64777201,43786.0,43784.0,0.07506337]
[1644586698569,0.64777201,43786.0,43784.0,0.06934637]
[1644586698967,0.29282489,43785.0,43784.0,0.06934637]
[1644586700470,0.29282489,43785.0,43781.0,0.06456189]
[1644586700668,0.24405155,43783.0,43781.0,0.06456189]
[1644586700869,0.24405155,43782.0,43781.0,0.06456189]
[1644586702614,2.90040427,43782.0,43781.0,0.06456189]
[1644586703015,0.24405155,43782.0,43781.0,0.06456189]
[1644586710714,0.24405155,43782.0,43781.0,0.11456189]
[1644586711916,0.24405155,43783.0,43781.0,0.22881389]
[1644586712614,0.24405155,43782.0,43781.0,0.17168789]
[1644586712817,0.24405155,43783.0,43781.0,0.22881389]
[1644586713572,0.24405155,43784.0,43781.0,0.28593889]
[1644586713770,0.24405155,43783.0,43781.0,0.28593889]
[1644586714373,0.30117793,43784.0,43781.0,0.28593889]
[1644586714584,0.24405155,43783.0,43781.0,0.28593889]
[1644586714974,0.30117793,43784.0,43781.0,0.28593889]
[1644586715173,0.24405155,43783.0,43781.0,0.28593889]
[1644586715672,0.05712638,43784.0,43781.0,0.22881289]
[1644586715673,0.24405155,43782.0,43781.0,0.22881289]
[1644586715872,0.24405155,43782.0,43781.0,0.17168789]
[1644586716073,0.06810403,43789.0,43782.0,0.8]
[1644586716279,0.28880018,43796.0,43784.0,1.1]
[1644586716478,0.28880018,43796.0,43785.0,0.3]
[1644586716674,0.28880018,43796.0,43784.0,1.15542665]
[1644586716675,0.2203,43796.0,43786.0,0.0457]
[1644586716925,0.2203,43796.0,43787.0,0.73583641]
[1644586717121,0.2203,43796.0,43789.0,0.057108]
[1644586717327,0.001,43796.0,43790.0,0.0457]
[1644586718022,0.001,43796.0,43791.0,0.05711]
[1644586719124,0.001,43796.0,43792.0,0.057112]
[1644586719332,0.001,43796.0,43793.0,0.057112]
[1644586719523,0.00147457,43796.0,43793.0,0.107112]
[1644586720125,0.34524988,43796.0,43793.0,0.107112]
[1644586720324,0.34477531,43796.0,43793.0,0.164224]
[1644586720771,0.001,43796.0,43793.0,0.164224]
[1644586720970,0.001,43796.0,43793.0,0.221336]
[1644586721171,0.323168,43795.0,43794.0,0.057112]
[1644586721371,0.001,43796.0,43794.0,0.10238736]
[1644586725127,0.24487862,43796.0,43794.0,0.10238736]
[1644586725526,0.24487862,43796.0,43794.0,0.37309636]
[1644586725527,0.001,43796.0,43794.0,0.37309636]
[1644586725826,0.001,43796.0,43794.0,0.15238736]
[1644586726426,0.001,43796.0,43794.0,0.20949344]
[1644586726628,0.001,43796.0,43794.0,0.91140744]
[1644586726828,0.001,43796.0,43794.0,0.85439695]
[1644586727027,0.001,43796.0,43794.0,0.58065324]
[1644586727227,0.001,43796.0,43794.0,0.20949344]
[1644586729673,0.00085775,43796.0,43794.0,0.20949344]
[1644586730879,0.00085775,43796.0,43795.0,0.0457]
[1644586732923,0.001,43797.0,43795.0,0.0457]
[1644586733121,0.001,43797.0,43796.0,0.057107]
[1644586733321,0.001,43797.0,43796.0,0.102807]
[1644586733724,0.001,43797.0,43796.0,0.45188903]
[1644586734921,0.0007344,43799.0,43796.0,0.45188903]
[1644586735122,0.24381321,43803.0,43796.0,0.45188903]
[1644586735123,0.23654761,43803.0,43798.0,0.05710034]
[1644586735325,0.23654761,43803.0,43800.0,0.0571]
[1644586735571,0.23654761,43803.0,43799.0,0.0571]
[1644586735970,0.44887583,43805.0,43799.0,0.0571]
[1644586736371,0.29266912,43805.0,43799.0,0.0571]
[1644586736575,0.29266912,43805.0,43800.0,0.05710195]
[1644586736774,0.29266912,43805.0,43801.0,0.057103]
[1644586737173,0.29266912,43805.0,43801.0,0.107103]
[1644586737576,0.75898362,43806.0,43802.0,0.0571]
[1644586737980,0.31010779,43806.0,43802.0,0.0571]
[1644586738173,0.58749933,43806.0,43802.0,0.0571]
[1644586738374,0.88016845,43806.0,43802.0,0.0571]
[1644586738575,0.8809028,43806.0,43802.0,0.0571]
[1644586739424,1.03710951,43806.0,43802.0,0.0571]
[1644586739623,0.58749933,43806.0,43802.0,0.0571]
[1644586739824,0.58823368,43806.0,43802.0,0.0571]
[1644586740324,0.31084214,43806.0,43802.0,0.0571]
[1644586740722,0.31010779,43806.0,43802.0,0.0571]
[1644586741124,0.5869342,43806.0,43802.0,0.0571]
[1644586741323,0.5869342,43806.0,43801.0,0.09400073]
[1644586741926,0.58619985,43806.0,43801.0,0.09400073]
[1644586742126,0.58693421,43806.0,43801.0,0.09400073]
[1644586742628,0.58693421,43806.0,43802.0,0.0571]
[1644586743176,0.58619985,43806.0,43802.0,0.0571]
[1644586743372,0.5869342,43806.0,43802.0,0.0571]
[1644586743973,0.24371061,43805.0,43802.0,0.1142]
[1644586744172,0.24371061,43805.0,43802.0,0.0571]
[1644586744771,0.51871061,43805.0,43802.0,0.0571]
[1644586744974,0.24371061,43804.0,43802.0,0.0571]
[1644586745572,0.24371061,43805.0,43802.0,0.0571]
[1644586745774,0.24444497,43805.0,43802.0,0.0571]
[1644586745978,0.5204041,43805.0,43802.0,0.0571]
[1644586746174,0.24444497,43805.0,43802.0,0.0571]
[1644586746674,0.52103814,43805.0,43802.0,0.0571]
[1644586746929,0.24371061,43804.0,43802.0,0.0571]
[1644586747224,0.2434358,43804.0,43802.0,0.0571]
[1644586747625,0.3369,43803.0,43802.0,0.0571]
[1644586749726,0.61510155,43803.0,43802.0,0.0571]
[1644586752277,0.61510155,43803.0,43793.0,0.00073456]
[1644586752278,0.06762189,43794.0,43793.0,0.00073456]
[1644586752477,0.43648989,43794.0,43793.0,0.00073456]
[1644586752681,1.17451277,43794.0,43793.0,0.00073456]
[1644586752979,0.323168,43793.0,43791.0,0.00073449]
[1644586753975,0.323168,43793.0,43782.0,0.5103283]
[1644586754177,0.323168,43793.0,43790.0,0.05784143]
[1644586754824,0.60399379,43792.0,43790.0,0.00072043]
[1644586755023,0.59781971,43791.0,43790.0,0.00072043]
[1644586755221,0.59781971,43791.0,43781.0,0.5607]
[1644586755222,0.59781971,43791.0,43788.0,0.057124]
[1644586755421,0.59781971,43791.0,43789.0,0.00072043]
[1644586755624,0.28515358,43790.0,43789.0,0.00072043]
[1644586755823,0.60832158,43790.0,43789.0,0.00072043]
[1644586756023,0.323168,43790.0,43789.0,0.00072043]
[1644586756425,0.60740528,43790.0,43788.0,0.057124]
[1644586756625,0.59723032,43789.0,43788.0,0.057124]
[1644586756923,0.27406232,43789.0,43788.0,0.057124]
[1644586757122,0.59723032,43789.0,43788.0,0.057124]
[1644586758383,0.34829688,43787.0,43786.0,0.05782307]
[1644586758582,0.323168,43787.0,43786.0,0.05782307]
[1644586758792,0.323168,43787.0,43786.0,0.057127]
[1644586760384,0.34898096,43788.0,43786.0,0.057127]
[1644586760586,0.40126617,43787.0,43786.0,0.057127]
[1644586760793,0.40126617,43787.0,43784.0,0.00069608]
[1644586760794,0.814938,43787.0,43784.0,0.00069608]
[1644586760989,0.29253762,43786.0,43784.0,0.00069608]
[1644586761290,1.053758,43785.0,43768.0,0.81062669]
[1644586761488,0.323168,43780.0,43768.0,0.5602]
[1644586761687,0.59612111,43780.0,43770.0,0.26493851]
[1644586761928,0.59612111,43780.0,43772.0,0.05713355]
[1644586762423,0.89486151,43780.0,43772.0,0.05713355]
[1644586762621,0.89486151,43780.0,43776.0,0.057138]
[1644586762822,0.98448749,43779.0,43776.0,0.057138]
[1644586763023,0.323168,43778.0,43776.0,0.00375455]
[1644586763222,0.97195599,43777.0,43776.0,0.00375455]
[1644586763422,1.29512399,43777.0,43776.0,0.00375455]
[1644586764922,1.29512399,43777.0,43773.0,0.057136]
[1644586765124,0.323168,43776.0,43774.0,0.00069813]
[1644586765576,0.27476076,43775.0,43774.0,0.00069813]
[1644586765774,0.597654,43775.0,43774.0,0.00069813]
[1644586766173,0.323168,43775.0,43773.0,0.057136]
[1644586767375,0.323168,43775.0,43771.0,0.057139]
[1644586767575,0.323168,43775.0,43772.0,0.00069815]
[1644586767973,0.68489,43777.0,43772.0,0.00069815]
[1644586768577,0.68489,43777.0,43772.0,0.057137]
[1644586768774,0.68489,43777.0,43772.0,0.05783516]
[1644586770827,0.68489,43777.0,43772.0,0.057137]
[1644586771027,0.323168,43776.0,43772.0,0.057137]
[1644586771228,0.323168,43776.0,43772.0,0.00069816]
[1644586771533,0.07674805,43774.0,43772.0,0.00069816]
[1644586771730,0.66843977,43773.0,43772.0,0.00069816]
[1644586772129,0.66843977,43773.0,43754.0,0.92128769]
[1644586772130,0.08787801,43764.0,43754.0,0.92128769]
[1644586772333,0.323168,43763.0,43757.0,0.057157]
[1644586772530,0.0457,43768.0,43758.0,0.26423279]
[1644586772730,0.98446177,43773.0,43759.0,0.3]
[1644586772731,1.03016177,43773.0,43759.0,0.3]
[1644586773173,1.03016177,43773.0,43761.0,0.33448296]
[1644586773373,1.03016177,43773.0,43764.0,0.05714446]
[1644586773578,0.68489,43773.0,43766.0,0.3766462]
[1644586773773,0.68489,43773.0,43769.0,0.171408]
[1644586773974,0.68178745,43773.0,43769.0,0.221408]
[1644586774276,0.68178745,43773.0,43772.0,0.057136]
[1644586775076,0.33899645,43773.0,43772.0,0.46806689]
[1644586775277,0.42334149,43787.0,43778.0,0.057129]
[1644586775278,0.2282,43787.0,43778.0,0.057129]
[1644586775475,0.5797,43789.0,43779.0,0.3882576]
[1644586775672,0.5797,43789.0,43779.0,0.11425297]
[1644586775673,0.02952,43788.0,43779.0,0.11425297]
[1644586775876,0.02952,43788.0,43785.0,0.2308896]
[1644586776076,0.02952,43788.0,43785.0,0.17135904]
[1644586776276,0.02952,43788.0,43786.0,0.33499456]
[1644586776477,0.02952,43788.0,43787.0,0.31275203]
[1644586776676,0.19514149,43798.0,43788.0,1.0]
[1644586776931,0.23003496,43801.0,43788.0,1.0]
[1644586777131,0.22938022,43801.0,43790.0,0.55317126]
[1644586777428,0.22938022,43801.0,43791.0,0.00065798]
[1644586777429,0.28714805,43801.0,43791.0,0.00065798]
[1644586777626,0.03489656,43801.0,43791.0,0.00065798]
[1644586777828,0.19579932,43801.0,43792.0,0.0457]
[1644586778029,0.00065783,43801.0,43792.0,0.0457]
[1644586778229,0.00065783,43801.0,43793.0,0.28007649]
[1644586778428,0.32158012,43800.0,43794.0,0.10280334]
[1644586778629,0.32158012,43800.0,43795.0,0.057103]
[1644586778830,0.13736161,43799.0,43796.0,0.0457]
[1644586779330,0.32158012,43800.0,43796.0,0.0457]
[1644586779535,0.59953214,43799.0,43796.0,0.0457]
[1644586779730,0.59953214,43799.0,43796.0,0.02050125]
[1644586779731,0.27636414,43799.0,43796.0,0.02050125]
[1644586780332,0.47150563,43799.0,43796.0,0.02050125]
[1644586780576,0.27636414,43799.0,43796.0,0.02050125]
[1644586781773,0.55289166,43799.0,43796.0,0.02050125]
[1644586782777,0.323168,43798.0,43795.0,0.05]
[1644586783377,0.51830949,43798.0,43795.0,0.05]
[1644586783575,0.323168,43798.0,43795.0,0.05]
[1644586783776,0.323168,43797.0,43795.0,0.05]
[1644586783975,0.32289306,43797.0,43796.0,0.057118]
[1644586784175,0.323152,43797.0,43796.0,0.057118]
[1644586784425,0.323152,43798.0,43796.0,0.057118]
[1644586784827,0.323152,43798.0,43797.0,0.05711609]
[1644586785425,0.323152,43798.0,43796.0,0.057118]
[1644586785426,0.59763825,43798.0,43796.0,0.057118]
[1644586785625,0.28657354,43797.0,43796.0,0.057118]
[1644586785825,0.60972554,43797.0,43796.0,0.057118]
[1644586786026,0.80486703,43797.0,43796.0,0.057118]
[1644586786227,0.48171503,43797.0,43796.0,0.057118]
[1644586786429,0.48171503,43797.0,43795.0,0.05]
[1644586786430,0.323152,43796.0,43795.0,0.05]
[1644586786627,0.323152,43796.0,43795.0,0.0185094]
[1644586786628,0.66610654,43796.0,43795.0,0.0185094]
[1644586787026,0.90979822,43796.0,43795.0,0.0185094]
[1644586787429,0.66610654,43796.0,43795.0,0.0185094]
[1644586788875,0.8610513,43796.0,43795.0,0.0185094]
[1644586789077,0.66610654,43796.0,43795.0,0.0185094]
[1644586791178,0.323152,43796.0,43795.0,0.0185094]
[1644586793021,0.323152,43796.0,43794.0,0.22846349]
[1644586793223,0.323152,43796.0,43794.0,0.15337127]
[1644586794021,0.323152,43796.0,43794.0,0.21048776]
[1644586794223,0.323152,43796.0,43795.0,0.057116]
[1644586794931,0.00043024,43801.0,43796.0,0.057103]
[1644586795137,0.19694476,43806.0,43798.0,0.114195]
[1644586795329,0.45212873,43808.0,43801.0,0.05]
[1644586795582,0.323152,43806.0,43804.0,0.39128193]
[1644586795783,0.323152,43806.0,43804.0,0.44128193]
[1644586795982,0.323152,43806.0,43804.0,0.49837393]
[1644586796184,0.323152,43806.0,43804.0,0.55546522]
[1644586796782,0.323152,43806.0,43805.0,0.057094]
[1644586797891,0.004,43808.0,43806.0,0.75]
[1644586797892,0.32315,43807.0,43806.0,0.75]
[1644586798084,0.32315,43807.0,43806.0,0.99226685]
[1644586798383,0.32415,43808.0,43806.0,0.29226685]
[1644586798581,0.32415,43808.0,43807.0,0.057088]
[1644586798781,0.32415,43808.0,43807.0,0.107088]
[1644586799622,0.32415,43808.0,43807.0,0.152788]
[1644586803476,0.32415,43808.0,43807.0,0.102788]
[1644586804677,0.32350502,43808.0,43807.0,0.102788]
[1644586805077,0.32350502,43808.0,43807.0,0.152788]
[1644586807523,0.32350502,43808.0,43807.0,0.107088]
[1644586808826,0.32350502,43808.0,43807.0,0.057088]
[1644586811277,0.31933999,43808.0,43807.0,0.057088]
[1644586811477,0.31433999,43808.0,43807.0,0.057088]
[1644586811979,0.31433999,43808.0,43807.0,0.38452306]
[1644586812378,0.323147,43809.0,43808.0,0.85]
[1644586812577,0.323147,43809.0,43808.0,0.964165]
[1644586812876,0.7767,43815.0,43808.0,0.964165]
[1644586812877,0.7767,43815.0,43809.0,0.6]
[1644586813079,0.00276653,43816.0,43811.0,0.057084]
[1644586813080,0.323145,43814.0,43811.0,0.057084]
[1644586813481,0.323145,43814.0,43811.0,0.1141671]
[1644586813881,0.323145,43814.0,43811.0,0.0570831]
[1644586814079,0.323145,43814.0,43812.0,0.057083]
[1644586817728,0.323145,43814.0,43812.0,0.107083]
[1644586817929,0.002,43819.0,43813.0,0.102772]
[1644586818187,0.002,43819.0,43818.0,0.24343857]
[1644586818382,0.002,43819.0,43818.0,0.0457]
[1644586818580,0.002,43819.0,43818.0,0.039983]
[1644586819882,0.0014713,43821.0,43818.0,0.689983]
[1644586820083,0.0014713,43821.0,43818.0,0.989983]
[1644586820282,0.0014713,43821.0,43819.0,0.057066]
[1644586820485,0.323094,43820.0,43819.0,0.057066]
[1644586820783,0.323094,43820.0,43819.0,0.40064539]
[1644586821182,0.323094,43820.0,43819.0,0.38461706]
[1644586821390,0.001,43821.0,43819.0,0.5558162]
[1644586821584,0.001,43821.0,43819.0,0.61619615]
[1644586821837,0.001,43821.0,43820.0,0.28121834]
[1644586822128,0.00072518,43821.0,43820.0,0.37691834]
[1644586823030,0.003,43822.0,43821.0,1.1]
[1644586823031,0.001,43822.0,43821.0,1.1]
[1644586823330,0.23840528,43822.0,43821.0,0.21687394]
[1644586824032,0.12784256,43822.0,43821.0,0.21687394]
[1644586824232,0.001,43823.0,43821.0,0.21687394]
[1644586824429,0.001,43823.0,43821.0,0.50734743]
[1644586825031,0.001,43823.0,43821.0,0.50161862]
[1644586826277,0.001,43823.0,43821.0,0.85625658]
[1644586826479,0.001,43823.0,43822.0,0.28091666]
[1644586826686,0.003,43834.0,43823.0,1.1]
[1644586826882,0.71507786,43837.0,43836.0,0.22026118]
[1644586827079,0.00158764,43837.0,43836.0,0.16373621]
[1644586827477,0.00158764,43837.0,43834.0,0.0457]
[1644586827678,0.00158764,43837.0,43835.0,0.35157794]
[1644586827878,0.00158764,43837.0,43835.0,0.40862694]
[1644586828078,0.00158764,43837.0,43835.0,0.63682862]
[1644586828079,0.32467264,43837.0,43835.0,0.63682862]
[1644586828280,0.00158764,43837.0,43835.0,0.63682862]
[1644586828481,0.00158764,43837.0,43835.0,0.28525068]
[1644586828882,0.05693464,43837.0,43835.0,0.28525068]
[1644586829334,0.00158764,43837.0,43835.0,0.28525068]
[1644586829524,0.05652744,43837.0,43835.0,0.28525068]
[1644586829724,0.00118044,43837.0,43835.0,0.28525068]
[1644586829928,0.32426544,43837.0,43835.0,0.28525068]
[1644586830124,0.28986544,43837.0,43835.0,0.28525068]
[1644586831128,0.323005,43837.0,43835.0,0.28525068]
[1644586831330,0.0014072,43838.0,43835.0,0.28525068]
[1644586831629,0.323005,43837.0,43835.0,0.28525068]
[1644586832030,0.00173646,43838.0,43835.0,0.28514018]
[1644586832031,0.07428312,43838.0,43835.0,0.28514018]
[1644586832230,0.323005,43837.0,43835.0,0.28514018]
[1644586833481,0.0014072,43838.0,43835.0,0.22809118]
[1644586833682,0.001,43838.0,43835.0,0.22809118]
[1644586833881,0.00173646,43838.0,43835.0,0.22809118]
[1644586834080,0.00173646,43838.0,43836.0,0.114086]
[1644586834883,0.001,43838.0,43836.0,0.114086]
[1644586835682,0.001,43838.0,43837.0,0.58051987]
[1644586835982,0.001,43838.0,43837.0,0.5384262]
[1644586837030,0.001,43838.0,43837.0,0.28091133]
[1644586837229,0.001,43838.0,43836.0,0.164086]
[1644586837831,0.001,43838.0,43836.0,0.114086]
[1644586838032,0.001,43838.0,43837.0,0.2837542]
[1644586840236,0.0006,43838.0,43836.0,0.360078]
[1644586840439,4.4e-06,43839.0,43838.0,0.323005]
[1644586840683,0.003,43842.0,43839.0,1.1]
[1644586840881,0.003,43842.0,43840.0,0.0457]
[1644586841381,0.00073644,43841.0,43840.0,0.102731]
[1644586841580,0.00073644,43841.0,43840.0,0.425736]
[1644586841879,0.002,43842.0,43840.0,0.102731]
[1644586842080,0.23054288,43843.0,43841.0,1.6986759]
[1644586842287,0.23054288,43843.0,43842.0,0.0457]
[1644586842480,0.001,43846.0,43843.0,0.6]
[1644586842682,0.002,43849.0,43844.0,1.29851576]
[1644586842881,0.002,43849.0,43845.0,0.0457]
[1644586843081,0.002,43849.0,43845.0,0.10272523]
[1644586843285,0.23217008,43861.0,43856.0,1.62199549]
[1644586843286,0.00147008,43861.0,43856.0,1.62199549]
[1644586843484,0.00147008,43861.0,43858.0,0.26229481]
[1644586843683,0.21183816,43864.0,43859.0,0.0457]
[1644586843882,0.00249982,43865.0,43860.0,0.0457]
[1644586844084,0.323005,43864.0,43860.0,0.0457]
[1644586844339,0.323005,43864.0,43860.0,0.15972275]
[1644586844538,0.00249982,43865.0,43860.0,0.11402275]
[1644586844733,0.02222,43863.0,43861.0,0.057018]
[1644586845131,0.323005,43863.0,43861.0,0.114033]
[1644586845333,0.323005,43863.0,43860.0,0.11402275]
[1644586845534,0.02222,43861.0,43860.0,0.057012]
[1644586845732,0.08180677,43865.0,43860.0,0.057012]
[1644586845933,0.08180677,43865.0,43861.0,0.323005]
[1644586846131,0.08180677,43865.0,43860.0,0.057012]
[1644586846132,0.02295699,43864.0,43860.0,0.057012]
[1644586846532,0.0109578,43864.0,43860.0,0.057012]
[1644586846733,0.34792628,43862.0,43860.0,0.057012]
[1644586846932,0.323005,43861.0,43860.0,0.057012]
[1644586847135,0.323005,43861.0,43859.0,0.02814567]
[1644586847333,0.34792628,43862.0,43859.0,0.07814567]
[1644586847644,0.34792628,43862.0,43859.0,0.02814567]
[1644586847839,0.34792628,43862.0,43857.0,0.05]
[1644586847840,0.60821472,43861.0,43857.0,0.05]
[1644586848087,0.322868,43861.0,43857.0,0.05]
[1644586848287,0.372868,43861.0,43857.0,0.05]
[1644586848485,0.37360501,43861.0,43857.0,0.05]
[1644586848686,0.32360501,43861.0,43857.0,0.05]
[1644586848886,0.32360501,43861.0,43858.0,0.05703]
[1644586849086,0.00073701,43861.0,43858.0,0.05703]
[1644586849386,0.322868,43860.0,43858.0,0.05703]
[1644586849985,0.65012332,43859.0,43858.0,0.05703]
[1644586850884,0.65012332,43859.0,43858.0,0.05443]
[1644586851385,0.322868,43859.0,43858.0,0.05443]
[1644586851586,0.00072208,43861.0,43858.0,0.05443]
[1644586851839,0.30926534,43864.0,43858.0,0.05443]
[1644586852034,0.30926534,43864.0,43858.0,0.10443]
[1644586852236,0.00072208,43861.0,43858.0,0.161449]
[1644586852434,0.00072208,43861.0,43859.0,0.114037]
[1644586852435,0.322868,43860.0,43859.0,0.114037]
[1644586852736,0.322877,43860.0,43859.0,0.114037]
[1644586852935,0.00072208,43861.0,43859.0,0.114037]
[1644586853137,0.00249982,43865.0,43858.0,0.03114174]
[1644586853335,0.00069787,43862.0,43858.0,0.03114174]
[1644586853534,0.00069787,43862.0,43859.0,0.29775892]
[1644586853734,0.00069787,43862.0,43858.0,0.03114174]
[1644586854134,0.00069787,43862.0,43860.0,0.11404121]
[1644586854335,0.25577134,43865.0,43860.0,0.11404121]
[1644586854535,0.47810049,43866.0,43860.0,0.11404121]
[1644586854536,0.00069787,43862.0,43860.0,0.11404121]
[1644586854734,0.08799787,43866.0,43860.0,0.17105921]
[1644586854937,0.07299787,43866.0,43860.0,0.17105921]
[1644586855341,0.322877,43865.0,43860.0,0.17105921]
[1644586855586,0.009439,43865.0,43860.0,0.11404021]
[1644586855787,0.31772683,43863.0,43860.0,0.11404021]
[1644586858490,0.322877,43862.0,43859.0,0.11404021]
[1644586858697,0.31772683,43863.0,43858.0,0.2532]
[1644586858698,0.009439,43859.0,43858.0,0.2532]
[1644586858898,0.13672701,43859.0,43858.0,0.2532]
[1644586859092,0.055139,43859.0,43858.0,0.2532]
[1644586859731,0.40138041,43859.0,43858.0,0.2532]
[1644586860333,0.055139,43859.0,43858.0,0.2532]
[1644586861836,0.050139,43859.0,43858.0,0.3032]
[1644586862240,0.050139,43859.0,43858.0,0.2532]
[1644586863781,0.28610257,43864.0,43858.0,0.3032]
[1644586863782,0.22906857,43864.0,43858.0,0.3032]
[1644586863981,0.22836925,43864.0,43859.0,0.22145981]
[1644586864179,0.22883611,43864.0,43859.0,0.22145981]
[1644586864378,0.00046686,43864.0,43859.0,0.22145981]
[1644586864780,0.00046686,43864.0,43859.0,0.17105628]
[1644586864781,0.322882,43863.0,43859.0,0.17105628]
[1644586864981,0.322882,43863.0,43859.0,0.11403628]
[1644586865581,2.21985682,43862.0,43859.0,0.11403628]
[1644586865785,0.00043545,43864.0,43859.0,0.11403628]
[1644586865982,0.322882,43863.0,43859.0,0.11403628]
[1644586866582,0.322882,43863.0,43859.0,0.17105828]
[1644586867040,0.322882,43863.0,43859.0,0.07730716]
[1644586867640,0.322882,43863.0,43859.0,0.13432416]
[1644586868442,0.61873037,43863.0,43859.0,0.13432416]
[1644586868742,0.29584837,43863.0,43859.0,0.057017]
[1644586869041,0.322882,43862.0,43858.0,0.3032]
[1644586870242,0.322882,43862.0,43858.0,0.2532]
[1644586870888,0.322882,43862.0,43858.0,0.310226]
[1644586871091,0.322882,43861.0,43858.0,0.310226]
[1644586871289,0.29584837,43863.0,43858.0,0.310226]
[1644586871493,0.29584837,43863.0,43858.0,0.36725002]
[1644586871690,0.322882,43863.0,43858.0,0.41725002]
[1644586872289,0.07858593,43861.0,43858.0,0.3032]
[1644586872489,0.322882,43863.0,43858.0,0.3032]
[1644586872490,0.322882,43860.0,43858.0,0.3032]
[1644586873694,0.19439926,43863.0,43858.0,0.3032]
[1644586873890,0.55935281,43865.0,43858.0,0.50096954]
[1644586873891,0.19509286,43864.0,43858.0,0.50096954]
[1644586874090,0.0006936,43864.0,43858.0,0.55799354]
[1644586874329,0.0006936,43864.0,43858.0,0.50096954]
[1644586874825,0.51005953,43865.0,43859.0,0.05702345]
[1644586875026,0.00069362,43864.0,43859.0,0.05702345]
[1644586875425,0.322882,43863.0,43859.0,0.11404645]
[1644586875830,0.19509288,43864.0,43858.0,0.3032]
[1644586876025,0.19439926,43864.0,43858.0,0.3032]
[1644586876229,0.19509288,43864.0,43859.0,0.05702461]
[1644586876424,0.19509288,43864.0,43860.0,0.057019]
[1644586877232,0.19439926,43864.0,43860.0,0.34211424]
[1644586877427,0.322882,43863.0,43860.0,0.28509524]
[1644586877627,0.19509283,43864.0,43861.0,0.057019]
[1644586877827,0.322882,43863.0,43861.0,0.107019]
[1644586878093,0.322882,43863.0,43861.0,0.157019]
[1644586878394,0.322882,43863.0,43861.0,0.1]
[1644586878694,0.27743288,43862.0,43858.0,0.2532]
[1644586878899,0.322882,43861.0,43858.0,0.2532]
[1644586879093,0.19439926,43862.0,43858.0,0.2532]
[1644586879396,0.19439926,43863.0,43858.0,0.310225]
[1644586879995,0.322882,43862.0,43859.0,0.05702731]
[1644586880495,0.51728126,43862.0,43859.0,0.05702731]
[1644586880694,0.322882,43861.0,43859.0,0.05702731]
[1644586880895,0.19439926,43861.0,43859.0,0.11405031]
[1644586881099,0.322882,43860.0,43859.0,0.11405031]
[1644586882029,0.322882,43861.0,43859.0,0.11405031]
[1644586882227,0.19439926,43862.0,43859.0,0.11405031]
[1644586882428,0.322882,43861.0,43859.0,0.11405031]
[1644586882629,0.51728126,43861.0,43859.0,0.11405031]
[1644586882828,0.51728126,43861.0,43859.0,0.22107331]
[1644586883034,0.51728126,43861.0,43860.0,0.057023]
[1644586883228,2.39236848,43861.0,43860.0,0.057023]
[1644586883429,2.06948648,43861.0,43860.0,0.057023]
[1644586883630,0.322882,43861.0,43860.0,0.057023]